bitfinex/quotes_SOLUSD_20251013
["timestamp","ask_amount","ask_price","bid_price","bid_amount"]
[1760386010490,7.3860942,208.16,208.11,4.80515112]
[1760386010882,7.3860942,208.16,208.11,5.50515112]
[1760386011083,7.3860942,208.16,208.12,0.7]
[1760386011275,31.67647521,208.17,208.12,0.7]
[1760386011600,7.3860942,208.16,208.12,0.7]
[1760386011981,7.3860942,208.16,208.11,4.80515112]
[1760386012288,7.3860942,208.16,208.11,5.50515112]
[1760386013071,7.3860942,208.15,208.11,0.7]
[1760386013374,10.87647521,208.17,208.11,0.7]
[1760386013589,7.3860942,208.16,208.11,0.7]
[1760386014094,10.87647521,208.17,208.13,4.80468937]
[1760386014274,7.3860942,208.16,208.13,4.80468937]
[1760386014606,32.80776178,208.2,208.13,4.80468937]
[1760386014607,20.8,208.2,208.13,4.80468937]
[1760386014772,7.3860942,208.18,208.14,0.7]
[1760386015492,10.87647521,208.19,208.14,0.7]
[1760386015692,7.3860942,208.18,208.14,0.7]
[1760386015895,7.3860942,208.15,208.14,4.80438932]
[1760386016186,10.87647521,208.19,208.14,5.50438932]
[1760386016398,7.3860942,208.16,208.14,5.50438932]
[1760386016586,21.51,208.2,208.15,0.7]
[1760386016587,20.8,208.2,208.15,0.7]
[1760386016779,7.3860942,208.17,208.15,0.7]
[1760386017182,7.3860942,208.16,208.14,4.80438932]
[1760386017381,7.3860942,208.15,208.12,4.80476594]
[1760386017585,7.3860942,208.14,208.12,4.80476594]
[1760386017775,7.3860942,208.14,208.13,0.7]
[1760386017978,7.3860942,208.14,208.13,5.50468937]
[1760386019497,7.3860942,208.14,208.1,0.7]
[1760386019700,7.3860942,208.14,208.11,0.7]
[1760386020094,7.3860942,208.14,208.12,0.7]
[1760386020489,7.3860942,208.14,208.13,0.7]
[1760386020689,7.3860942,208.15,208.13,0.7]
[1760386021200,0.71,208.18,208.14,4.80445853]
[1760386021402,7.3860942,208.15,208.14,4.80445853]
[1760386021784,16.38982094,208.19,208.14,4.80445853]
[1760386021999,7.3860942,208.15,208.14,4.80445853]
[1760386022292,15.67982094,208.19,208.12,4.80492023]
[1760386022499,7.3860942,208.15,208.12,5.50492023]
[1760386022693,7.3860942,208.15,208.13,0.7]
[1760386022997,7.3860942,208.14,208.12,4.80492023]
[1760386023197,7.3860942,208.14,208.1,12.01336767]
[1760386023377,7.38383249,208.14,208.09,4.80561295]
[1760386023580,7.38383249,208.12,208.1,0.7]
[1760386023794,7.38383249,208.12,208.11,0.7]
[1760386024082,3.07694193,208.13,208.11,0.7]
[1760386024890,3.07694193,208.12,208.09,4.80561295]
[1760386025086,3.07694193,208.11,208.09,5.50561295]
[1760386025899,3.07694193,208.15,208.1,0.7]
[1760386026100,3.07694193,208.15,208.09,16.81964533]
[1760386026284,3.07694193,208.15,208.11,0.7]
[1760386026482,3.07694193,208.15,208.12,0.7]
[1760386027192,3.07694193,208.17,208.13,4.80468937]
[1760386027394,3.07694193,208.17,208.14,0.7]
[1760386027789,3.07694193,208.16,208.13,4.80468937]
[1760386027988,3.07694193,208.15,208.13,4.80468937]
[1760386029101,3.07694193,208.15,208.12,4.80492023]
[1760386029305,10.87647521,208.18,208.12,5.50492023]
[1760386029604,3.07694193,208.13,208.09,5.50561295]
[1760386029794,3.07694193,208.13,208.1,0.7]
[1760386030282,0.71,208.16,208.09,16.81964533]
[1760386030491,3.07694193,208.1,208.06,0.7]
[1760386030709,0.71,208.12,208.05,4.80653689]
[1760386030910,0.71,208.12,208.04,0.7]
[1760386030911,3.07694193,208.06,208.04,0.7]
[1760386031079,3.07694193,208.06,208.05,0.7]
[1760386031284,3.78694193,208.06,207.99,5.50792345]
[1760386031585,3.78694193,208.06,207.97,5.50816024]
[1760386031586,3.07694193,208.0,207.97,5.50816024]
[1760386031797,3.07694193,207.98,207.95,5.50863865]
[1760386032009,3.07694193,207.96,207.95,4.80863865]
[1760386032986,3.07694193,207.96,207.93,4.15124608]
[1760386033181,3.07694193,207.96,207.93,4.85124608]
[1760386033381,3.08193497,207.96,207.93,4.85124608]
[1760386033802,3.08193497,207.94,207.91,5.00959455]
[1760386034033,3.08193497,207.93,207.91,5.00959455]
[1760386034215,3.08193497,207.92,207.91,0.2]
[1760386034715,3.08193497,207.92,207.91,5.00977345]
[1760386035081,7.39967518,207.92,207.91,5.00977345]
[1760386035282,7.39967518,207.92,207.91,0.2]
[1760386035586,10.87647521,207.95,207.91,0.2]
[1760386035785,7.39967518,207.93,207.91,5.00977345]
[1760386036091,8.05967518,207.92,207.91,0.2]
[1760386036399,18.93615039,207.92,207.91,0.2]
[1760386036902,28.19967518,207.92,207.91,0.2]
[1760386037113,7.39967518,207.94,207.91,0.9]
[1760386037315,7.39967518,207.94,207.91,5.70977345]
[1760386037517,7.39967518,207.93,207.91,5.00977345]
[1760386038699,7.39967518,207.92,207.91,0.2]
[1760386038900,18.27615039,207.92,207.91,0.2]
[1760386039094,18.93615039,207.92,207.91,0.2]
[1760386041107,18.27615039,207.92,207.91,0.2]
[1760386042013,23.74569252,207.92,207.91,0.2]
[1760386042691,31.1453677,207.92,207.91,0.2]
[1760386042893,39.9253677,207.92,207.91,0.2]
[1760386043902,32.52569252,207.92,207.91,0.2]
[1760386044089,39.9253677,207.92,207.91,0.2]
[1760386045114,31.67647521,207.88,207.85,0.2]
[1760386045413,7.39967518,207.86,207.85,0.2]
[1760386045824,8.05967518,207.86,207.85,0.2]
[1760386046000,18.93615039,207.86,207.85,0.2]
[1760386047212,0.66,207.95,207.85,0.9]
[1760386047415,7.39967518,207.9,207.86,0.7]
[1760386047612,7.39967518,207.91,207.86,0.7]
[1760386047796,7.39967518,207.89,207.87,0.7]
[1760386047997,7.39967518,207.88,207.87,0.7]
[1760386048196,7.39967518,207.88,207.85,5.71116189]
[1760386048423,7.39967518,207.86,207.85,0.2]
[1760386048719,18.27615039,207.86,207.85,0.2]
[1760386048902,11.53647521,207.86,207.85,0.2]
[1760386049096,37.14740564,207.86,207.85,0.2]
[1760386049297,23.74708082,207.86,207.85,0.2]
[1760386049816,32.52708082,207.86,207.85,0.2]
[1760386049991,23.74708082,207.86,207.85,0.2]
[1760386050389,44.54708082,207.86,207.85,0.2]
[1760386050594,23.74708082,207.86,207.85,0.2]
[1760386051316,23.08708082,207.86,207.85,0.2]
[1760386052919,32.52708082,207.86,207.77,0.2]
[1760386053122,39.07615039,207.78,207.77,0.2]
[1760386054008,20.8,207.8,207.77,0.9]
[1760386054223,28.19967518,207.8,207.78,0.7]
[1760386054530,20.8,207.83,207.79,0.7]
[1760386054708,7.39967518,207.8,207.79,0.7]
[1760386054898,28.19967518,207.8,207.79,0.7]
[1760386055414,28.19967518,207.8,207.77,5.71297026]
[1760386055613,28.19967518,207.8,207.78,0.7]
[1760386057218,7.39967518,207.79,207.78,0.7]
[1760386058806,7.39967518,207.8,207.78,5.51277385]
[1760386059009,7.39967518,207.81,207.79,0.7]
[1760386059508,7.40777055,207.81,207.79,0.7]
[1760386059826,10.87647521,207.82,207.77,5.71300215]
[1760386059827,7.40777055,207.8,207.77,5.71300215]
[1760386060006,4.93910415,207.8,207.78,0.7]
[1760386060721,4.93910415,207.79,207.78,0.7]
[1760386061828,4.93910415,207.79,207.77,0.2]
[1760386062126,4.93910415,207.79,207.77,0.9]
[1760386062324,10.87647521,207.82,207.78,0.71]
[1760386062531,4.93910415,207.8,207.79,0.71]
[1760386062919,4.93910415,207.8,207.77,5.01292487]
[1760386063121,4.93910415,207.79,207.78,0.71]
[1760386066321,4.93910415,207.79,207.77,5.01292487]
[1760386066834,4.93910415,207.79,207.78,0.71]
[1760386068042,4.93910415,207.83,207.78,5.52272421]
[1760386068206,4.93910415,207.86,207.79,5.59910415]
[1760386068406,4.93910415,207.86,207.8,5.59910415]
[1760386068407,25.73910415,207.86,207.8,5.59910415]
[1760386068649,4.93910415,207.85,207.81,0.66]
[1760386068831,4.93910415,207.83,207.78,16.84468108]
[1760386069039,4.93910415,207.81,207.78,5.47272421]
[1760386069330,4.93910415,207.81,207.79,0.66]
[1760386069520,4.93910415,207.81,207.8,0.66]
[1760386069927,4.93910415,207.82,207.8,0.66]
[1760386070120,4.93910415,207.82,207.8,5.47208908]
[1760386072841,10.87647521,207.85,207.8,5.47208908]
[1760386073324,4.93910415,207.85,207.81,0.66]
[1760386073518,4.93910415,207.85,207.82,0.66]
[1760386074020,4.93910415,207.85,207.83,0.66]
[1760386074215,15.81557936,207.86,207.83,0.66]
[1760386074635,36.61557936,207.86,207.83,0.66]
[1760386074816,36.61557936,207.86,207.84,0.66]
[1760386076045,36.61557936,207.86,207.85,0.66]
[1760386076229,0.69,207.9,207.8,12.03079884]
[1760386076413,10.87647521,207.93,207.85,0.66]
[1760386076720,15.81557936,207.89,207.85,0.66]
[1760386076917,4.93910415,207.89,207.86,0.66]
[1760386077115,25.73910415,207.89,207.86,0.66]
[1760386077535,4.93910415,207.88,207.86,0.66]
[1760386077945,4.93910415,207.87,207.82,4.81168135]
[1760386078108,4.93910415,207.86,207.83,0.66]
[1760386078312,4.93910415,207.85,207.83,0.66]
[1760386078612,4.93910415,207.85,207.84,0.66]
[1760386079021,4.93910415,207.86,207.85,4.81116189]
[1760386079236,4.93910415,207.86,207.85,5.47116189]
[1760386079430,4.93601934,207.86,207.85,5.47116189]
[1760386079942,1.97440893,207.86,207.85,5.47116189]
[1760386080314,2.66440893,207.86,207.79,4.81255113]
[1760386080513,0.69,207.85,207.79,4.81255113]
[1760386080720,1.97440893,207.8,207.77,0.2]
[1760386080926,1.97440893,207.78,207.77,0.2]
[1760386081135,1.97440893,207.79,207.77,5.67301439]
[1760386081320,1.97440893,207.81,207.78,0.66]
[1760386081511,1.97440893,207.82,207.79,0.66]
[1760386081717,1.97440893,207.82,207.8,0.66]
[1760386081917,1.97440893,207.81,207.77,5.67301439]
[1760386082116,21.49,207.84,207.77,5.67301439]
[1760386082117,1.97440893,207.8,207.77,5.67301439]
[1760386082411,1.97440893,207.79,207.77,5.67301439]
[1760386082623,1.97440893,207.79,207.77,5.01301439]
[1760386085527,0.21324235,207.85,207.81,0.66]
[1760386085835,0.21324235,207.85,207.82,0.66]
[1760386086026,0.21324235,207.85,207.77,25.80555036]
[1760386086027,1.97440893,207.83,207.77,17.04555036]
[1760386086223,2.1165705,207.8,207.77,17.04555036]
[1760386086427,0.14216157,207.79,207.77,5.01301439]
[1760386086732,2.1165705,207.79,207.77,5.01301439]
[1760386087119,0.14216157,207.79,207.77,5.01301439]
[1760386087940,0.14216157,207.79,207.78,0.66]
[1760386088322,0.21324235,207.85,207.78,2.63440893]
[1760386088524,0.21324235,207.85,207.79,2.63440893]
[1760386088727,0.35540392,207.85,207.8,2.49230893]
[1760386088924,2.32981285,207.85,207.81,4.81208796]
[1760386089424,2.32981285,207.85,207.81,5.47208796]
[1760386089621,2.32981285,207.85,207.81,4.81208796]
[1760386089822,0.35540392,207.85,207.82,0.66]
[1760386090126,0.21324235,207.85,207.83,0.66]
[1760386090320,0.21324235,207.85,207.83,2.63440893]
[1760386090520,0.21324235,207.85,207.84,0.66]
[1760386090923,0.69,207.98,207.84,64.33125263]
[1760386091121,0.69,207.98,207.9,1.97440893]
[1760386091316,1.97440893,207.98,207.91,2.63440893]
[1760386091535,10.87647521,207.97,207.91,2.63440893]
[1760386091737,10.87647521,207.97,207.91,0.66]
[1760386091738,12.85088414,207.97,207.91,0.66]
[1760386091936,0.14216157,207.94,207.91,0.66]
[1760386092243,1.97440893,207.96,207.92,0.68]
[1760386092442,0.14216157,207.95,207.93,4.80931082]
[1760386093140,1.97440893,208.01,207.94,2.65440893]
[1760386093343,1.97440893,208.0,207.95,0.5379]
[1760386093537,15.68324313,208.04,207.93,16.83258788]
[1760386093538,1.97440893,207.97,207.93,4.80931082]
[1760386093718,10.87647521,208.02,207.94,20.8]
[1760386093922,2.1165705,207.98,207.93,16.83258788]
[1760386094122,0.14216157,207.96,207.93,4.80931082]
[1760386094522,0.14216157,207.96,207.92,4.80952519]
[1760386094840,2.1165705,207.96,207.92,4.80952519]
[1760386095542,0.14216157,207.96,207.93,0.68]
[1760386095744,0.14216157,207.96,207.94,0.68]
[1760386095941,1.97440893,207.99,207.94,0.68]
[1760386096240,0.14216157,207.98,207.92,18.80778944]
[1760386096546,2.1165705,207.95,207.9,4.81000481]
[1760386097229,1.97440893,207.92,207.85,6.78557082]
[1760386097429,10.87647521,207.97,207.87,12.02628188]
[1760386097430,0.14216157,207.91,207.87,12.02628188]
[1760386098448,0.14216157,207.91,207.88,0.68]
[1760386098744,0.14216157,207.91,207.89,5.49023618]
[1760386099436,0.14216157,207.9,207.89,4.66813618]
[1760386099641,2.1165705,207.9,207.87,4.81049373]
[1760386099836,0.14216157,207.88,207.87,4.81049373]
[1760386100040,0.14216157,207.88,207.87,5.49049373]
[1760386100345,0.14216157,207.88,207.87,7.46490266]
[1760386101531,1.97440893,207.95,207.87,19.49165014]
[1760386101737,1.97440893,207.95,207.88,0.68]
[1760386102542,1.97440893,207.95,207.89,4.81023618]
[1760386103935,1.54055342,207.95,207.89,4.81023618]
[1760386104750,0.14216157,207.92,207.89,4.81023618]
[1760386104938,0.14216157,207.92,207.89,5.49023618]
[1760386106055,1.68271499,207.92,207.84,12.70820926]
[1760386106256,1.68271499,207.9,207.84,12.70820926]
[1760386106849,0.14216157,207.87,207.82,0.68]
[1760386107055,0.14216157,207.87,207.83,0.68]
[1760386107250,0.14216157,207.87,207.83,2.22055342]
[1760386107442,0.14216157,207.87,207.84,2.22055342]
[1760386107834,0.7,207.97,207.86,1.54055342]
[1760386108034,1.54055342,207.95,207.88,1.54055342]
[1760386108235,1.54055342,207.95,207.89,17.51582663]
[1760386108453,1.54055342,207.95,207.89,16.83582663]
[1760386108759,0.14216157,207.94,207.9,0.68]
[1760386109150,0.14216157,207.94,207.91,0.68]
[1760386109470,0.14216157,207.94,207.92,4.80954213]
[1760386110143,1.54055342,207.98,207.93,0.68]
[1760386110337,1.54055342,207.98,207.94,0.68]
[1760386110648,0.14216157,207.97,207.94,0.68]
[1760386110832,0.14216157,207.97,207.95,0.68]
[1760386111635,0.14216157,207.97,207.96,4.80861704]
[1760386112253,0.14216157,207.97,207.92,12.70385532]
[1760386112456,0.14216157,207.97,207.93,0.68]
[1760386112653,0.14216157,207.97,207.94,0.68]
[1760386113154,0.14216157,207.98,207.95,0.68]
[1760386113354,1.54055342,208.01,207.95,0.68]
[1760386113541,21.01324235,208.03,207.98,18.36909462]
[1760386113738,21.01324235,208.03,207.99,0.68]
[1760386113942,0.14216157,208.02,208.0,0.68]
[1760386114156,0.21324235,208.03,208.01,0.68]
[1760386114932,0.21324235,208.03,208.02,0.68]
[1760386115155,0.2,208.06,208.02,2.22055342]
[1760386115356,0.2,208.06,208.03,0.68]
[1760386115559,0.2,208.06,208.03,6.34755241]
[1760386115745,0.2,208.06,208.04,0.68]
[1760386116060,0.2,208.06,208.05,2.22055342]
[1760386116962,0.2,208.06,208.05,10.96055342]
[1760386117150,0.2,208.06,208.05,2.22055342]
[1760386117344,0.2,208.06,208.05,13.26450249]
[1760386117660,0.2,208.06,208.05,9.33103938]
[1760386120662,0.2,208.06,208.05,4.80653689]
[1760386120961,0.2,208.06,208.03,4.80677319]
[1760386121263,0.2,208.06,208.04,4.52450249]
[1760386121564,0.2,208.06,208.04,6.85951069]
[1760386121763,0.2,208.06,208.05,0.68]
[1760386122061,0.2,208.06,208.05,9.42]
[1760386122241,0.2,208.06,208.05,0.68]
[1760386122444,0.2,208.06,208.05,9.44]
[1760386123467,0.2,208.06,208.05,4.80653689]
[1760386123959,0.2,208.06,208.05,5.50653689]
[1760386124144,0.2,208.06,208.05,14.24653689]
[1760386124673,0.2,208.06,208.05,13.54653689]
[1760386125365,0.2,208.06,208.05,4.80653689]
[1760386127461,0.2,208.06,208.04,4.80676792]
[1760386128165,0.14216157,208.05,208.04,4.80676792]
[1760386128365,0.14216157,208.05,208.01,4.80746117]
[1760386128545,0.14216157,208.05,208.01,5.47746117]
[1760386128743,0.14216157,208.05,208.01,4.80746117]
[1760386129094,6.32167226,208.03,207.99,5.47774543]
[1760386129254,0.14216157,208.03,208.0,6.84951069]
[1760386129573,0.14216157,208.03,208.02,4.80723007]
[1760386130473,0.14216157,208.03,208.0,4.8076923]
[1760386130654,0.72,208.02,207.97,4.80838582]
[1760386130854,0.14216157,208.0,207.97,4.80838582]
[1760386131561,0.14216157,208.0,207.96,12.02119258]
[1760386131758,0.14216157,207.98,207.95,4.80884828]
[1760386132083,0.14216157,207.98,207.91,24.0479842]
[1760386132084,0.14216157,207.96,207.92,4.80954213]
[1760386132260,0.14216157,207.95,207.92,4.80954213]
[1760386132446,0.14216157,207.95,207.93,0.67]
[1760386132768,0.14216157,207.95,207.92,4.80954213]
[1760386133464,0.14216157,207.95,207.92,12.02385532]
[1760386134169,0.14216157,207.95,207.93,0.67]
[1760386134344,0.14216157,207.96,207.92,12.02385532]
[1760386134549,0.14216157,207.96,207.92,12.69385532]
[1760386135472,0.14216157,207.96,207.92,17.50339745]
[1760386135871,0.14216157,207.96,207.93,0.67]
[1760386136056,0.14216157,207.96,207.94,0.67]
[1760386136372,0.14216157,207.99,207.92,23.68290814]
[1760386136678,0.14216157,207.97,207.92,23.68290814]
[1760386136971,0.14216157,207.97,207.93,0.67]
[1760386137475,0.14216157,207.97,207.94,16.83177839]
[1760386138268,10.87647521,208.01,207.94,16.83177839]
[1760386138269,6.17951069,208.01,207.95,0.67]
[1760386138476,6.89951069,208.0,207.94,16.83177839]
[1760386138651,0.14216157,207.99,207.94,16.83177839]
[1760386138858,0.14216157,207.97,207.94,16.83177839]
[1760386140578,0.14216157,207.97,207.94,17.50177839]
[1760386140958,0.14216157,207.95,207.94,4.80907954]
[1760386141357,0.72,208.04,207.94,17.50177839]
[1760386141673,6.17951069,208.02,207.95,6.84951069]
[1760386141972,6.17951069,208.02,207.96,0.67]
[1760386142164,6.17951069,208.04,207.97,14.89951069]
[1760386142359,21.0,208.06,207.98,6.84951069]
[1760386142551,27.17951069,208.06,207.99,0.67]
[1760386142756,27.17951069,208.06,208.0,16.82692306]
[1760386143169,6.37951069,208.06,208.0,16.82692306]
[1760386143351,0.2,208.06,208.0,16.82692306]
[1760386143552,0.2,208.06,208.02,6.17951069]
[1760386143774,0.2,208.06,208.03,6.17951069]
[1760386143966,0.2,208.06,208.04,0.67]
[1760386144166,0.2,208.06,208.05,0.67]
[1760386144369,0.2,208.06,208.05,6.84951069]
[1760386144978,0.2,208.06,208.05,11.65604758]
[1760386145762,0.2,208.06,208.05,4.80653689]
[1760386145969,0.2,208.06,208.05,5.47653689]
[1760386146165,0.2,208.06,208.05,4.80653689]
[1760386146567,1.06216157,208.06,208.05,4.80653689]
[1760386146880,1.06216157,208.06,208.01,12.01865294]
[1760386146881,0.14216157,208.05,208.01,12.01865294]
[1760386147178,0.14216157,208.03,208.0,16.82692306]
[1760386147359,0.14216157,208.03,208.0,17.49692306]
[1760386147766,0.86216157,208.03,208.0,4.8076923]
[1760386147967,6.17951069,208.04,208.0,4.8076923]
[1760386148180,0.14216157,208.03,208.0,5.4776923]
[1760386148678,0.14216157,208.03,208.0,4.8076923]
[1760386148879,0.14216157,208.03,207.99,16.82752712]
[1760386149067,0.14216157,208.01,207.99,16.82752712]
[1760386149555,0.14216157,208.01,207.99,17.49752712]
[1760386149755,7.04167226,208.0,207.99,4.80792345]
[1760386149972,7.04167226,208.0,207.97,4.80817985]
[1760386149973,0.14216157,207.99,207.97,4.80817985]
[1760386150155,0.14216157,207.97,207.94,4.80907954]
[1760386150475,0.14216157,207.95,207.91,4.80977345]
[1760386150669,0.14216157,207.93,207.91,5.47977345]
[1760386151760,0.14216157,207.93,207.91,4.80977345]
[1760386152373,0.14216157,207.93,207.91,0.69]
[1760386152674,0.14216157,207.94,207.9,12.02463637]
[1760386152876,0.14216157,207.94,207.88,5.50046757]
[1760386152877,0.14216157,207.91,207.88,5.50046757]
[1760386154586,0.14216157,207.91,207.88,17.52663651]
[1760386154979,0.14216157,207.91,207.88,16.83663651]
[1760386155284,0.14216157,207.91,207.89,0.69]
[1760386155785,6.32167226,207.94,207.88,16.83663651]
[1760386155980,10.87647521,207.98,207.88,16.83663651]
[1760386155981,0.14216157,207.91,207.88,16.83663651]
[1760386156280,0.14216157,207.89,207.88,4.81046757]
[1760386156971,0.14216157,207.89,207.87,4.81069899]
[1760386157173,0.14216157,207.89,207.85,4.81094066]
[1760386157572,0.14216157,207.89,207.86,0.69]
[1760386157767,0.14216157,207.89,207.87,0.69]
[1760386157973,6.17951069,207.95,207.87,6.86951069]
[1760386158282,6.17951069,207.95,207.88,0.69]
[1760386158479,6.32167226,207.94,207.88,0.69]
[1760386158995,6.32167226,207.94,207.89,4.81023618]
[1760386159184,6.32167226,207.94,207.89,5.50023618]
[1760386159389,6.32167226,207.94,207.89,16.83582663]
[1760386159583,0.14216157,207.94,207.9,0.69]
[1760386159790,0.14216157,207.94,207.91,0.69]
[1760386160296,6.17951069,207.93,207.89,16.83582663]
[1760386160589,0.14216157,207.91,207.89,16.83582663]
[1760386161379,0.14216157,207.91,207.89,12.02559045]
[1760386162684,0.14216157,207.92,207.89,12.02559045]
[1760386162999,0.14216157,207.92,207.91,4.80977345]
[1760386164295,0.14216157,207.92,207.91,5.49977345]
[1760386164700,0.14216157,207.95,207.91,5.49977345]
[1760386165110,6.17951069,207.98,207.92,0.69]
[1760386165412,6.17951069,207.97,207.91,16.83420709]
[1760386165704,0.14216157,207.96,207.91,16.83420709]
[1760386165912,0.14216157,207.96,207.92,0.69]
[1760386166308,0.14216157,207.96,207.92,4.80936853]
[1760386166489,0.14216157,207.92,207.88,12.02583126]
[1760386166805,0.14216157,207.89,207.85,16.83883353]
[1760386166980,6.32167226,207.89,207.85,16.83883353]
[1760386167602,6.32167226,207.89,207.85,17.52883353]
[1760386167899,0.14216157,207.89,207.86,0.69]
[1760386168109,0.14216157,207.89,207.87,0.69]
[1760386168422,0.14216157,207.89,207.85,12.71767164]
[1760386168925,0.14216157,207.89,207.86,0.69]
[1760386169609,0.14216157,207.9,207.86,0.69]
[1760386170504,0.14216157,207.9,207.87,4.81069899]
[1760386172714,0.72,207.97,207.88,0.69]
[1760386172894,6.17951069,207.95,207.88,0.69]
[1760386173094,6.17951069,207.94,207.88,0.69]
[1760386173617,0.14216157,207.93,207.88,0.69]
[1760386173811,0.14216157,207.93,207.89,16.83582663]
[1760386174129,0.14216157,207.93,207.8,34.93804443]
[1760386174130,6.32167226,207.9,207.83,0.69]
[1760386174312,0.14216157,207.88,207.83,0.69]
[1760386174488,0.14216157,207.88,207.84,0.69]
[1760386174681,0.14216157,207.88,207.85,0.69]
[1760386174879,0.14216157,207.85,207.73,6.27951069]
[1760386175188,0.14216157,207.81,207.78,4.81276735]
[1760386175609,0.14216157,207.81,207.79,0.69]
[1760386175998,0.14216157,207.81,207.78,16.84472422]
[1760386176198,0.14216157,207.79,207.77,5.01294609]
[1760386176401,0.14216157,207.78,207.77,5.01294609]
[1760386177082,0.14216157,207.78,207.77,5.70294609]
[1760386178203,0.72,207.9,207.8,20.8]
[1760386178384,6.17951069,207.88,207.81,0.69]
[1760386179322,6.17951069,207.88,207.82,4.81185641]
[1760386180215,0.14216157,207.87,207.82,4.81185641]
[1760386180430,0.14216157,207.87,207.82,17.53149744]
[1760386181529,0.14216157,207.87,207.82,16.84149744]
[1760386181726,0.14216157,207.87,207.83,0.69]
[1760386182519,0.14216157,207.88,207.83,0.69]
[1760386182737,6.17951069,207.85,207.81,4.81195244]
[1760386183042,25.61028508,207.89,207.79,4.81255113]
[1760386183043,0.14216157,207.82,207.79,4.81255113]
[1760386183335,0.14216157,207.82,207.8,0.72]
[1760386183708,0.14216157,207.82,207.8,5.53214187]
[1760386184300,0.14216157,207.82,207.81,0.72]
[1760386185041,3.85547134,207.88,207.81,0.72]
[1760386185331,0.14216157,207.87,207.81,0.72]
[1760386186112,0.14216157,207.87,207.82,16.84149744]
[1760386186314,0.14216157,207.87,207.83,0.72]
[1760386187836,0.14216157,207.87,207.84,4.81139337]
[1760386188332,0.14216157,207.88,207.84,4.81139337]
[1760386188511,0.14216157,207.86,207.84,5.49139337]
[1760386189011,0.14216157,207.86,207.85,4.81116189]
[1760386190436,0.14216157,207.86,207.84,4.81139337]
[1760386192112,0.14216157,207.86,207.83,0.68]
[1760386192616,0.14216157,207.86,207.82,16.84149744]
[1760386192822,0.14216157,207.86,207.84,0.68]
[1760386193031,0.14216157,207.86,207.82,17.52149744]
[1760386193530,0.14216157,207.86,207.84,4.81139337]
[1760386193733,0.14216157,207.88,207.84,16.83987681]
[1760386193947,0.14216157,207.88,207.85,0.68]
[1760386194450,0.14216157,207.88,207.84,16.83987681]
[1760386194633,0.14216157,207.88,207.73,0.1]
[1760386194634,19.99999999,207.74,207.73,0.1]
[1760386194817,37.95451106,207.74,207.73,0.1]
[1760386195017,23.85547133,207.74,207.73,0.1]
[1760386195411,28.66918077,207.74,207.73,0.1]
[1760386195617,32.52465211,207.74,207.73,0.1]
[1760386195836,28.66918077,207.74,207.73,0.1]
[1760386196212,32.52465211,207.74,207.73,0.1]
[1760386196844,32.52465211,207.74,207.64,0.88]
[1760386196845,19.99999999,207.69,207.68,0.0579]
[1760386197042,23.85547133,207.69,207.68,0.0579]
[1760386198264,28.67033964,207.69,207.68,0.0579]
[1760386198549,23.85547133,207.69,207.68,0.0579]
[1760386199532,28.67033964,207.69,207.68,0.0579]
[1760386200138,19.99999999,207.69,207.68,0.0579]
[1760386200339,23.85547133,207.69,207.68,0.7379]
[1760386200848,19.99999999,207.69,207.68,0.7379]
[1760386201532,23.85547133,207.69,207.68,0.0579]
[1760386202120,23.85547133,207.69,207.68,0.7379]
[1760386203735,23.85547133,207.69,207.68,5.55300015]
[1760386204056,19.99999999,207.69,207.68,5.55300015]
[1760386204851,20.14216156,207.69,207.68,5.55300015]
[1760386206960,23.9976329,207.69,207.68,0.0579]
[1760386207820,19.99999999,207.67,207.66,0.1]
[1760386208136,23.9976329,207.67,207.66,0.1]
[1760386209155,39.68944012,207.67,207.66,0.1]
[1760386210645,31.01863677,207.67,207.66,0.1]
[1760386210952,23.9976329,207.67,207.66,0.1]
[1760386211163,20.14216156,207.67,207.66,0.1]
[1760386211324,19.99999999,207.67,207.66,0.78]
[1760386211526,19.99999999,207.67,207.66,5.5955639]
[1760386211830,19.99999999,207.67,207.66,0.1]
[1760386212037,20.14216156,207.67,207.66,0.1]
[1760386212247,20.14216156,207.67,207.66,0.79]
[1760386213536,20.14216156,207.65,207.64,0.2]
[1760386213737,3.99763291,207.65,207.64,5.01602774]
[1760386213941,23.9976329,207.65,207.64,0.89]
[1760386214538,20.14216156,207.65,207.64,5.70602774]